fUSD/lending_fUSD_20240728
["ID","MTS","AMOUNT","RATE_DAILY","PERIOD"]
[333457751,1722145832255,-559.6063,9.949e-05,2]
[333457752,1722145832266,-150.0,9.973e-05,2]
[333457753,1722145832275,-307.4,9.987e-05,2]
[333457754,1722145832284,-500.0,0.0001,2]
[333457755,1722145832294,-503.94,0.0001,2]
[333457756,1722145832303,-500.0,0.0001,2]
[333457757,1722145832312,-500.0,0.0001,2]
[333457758,1722145832322,-500.0,0.0001,2]
[333457759,1722145832331,-500.0,0.0001,2]
[333457760,1722145832340,-500.0,0.0001,2]
[333457761,1722145832349,-500.0,0.0001,2]
[333457762,1722145832359,-371.66,0.0001,2]
[333457763,1722145832369,-500.0,0.0001,2]
[333457764,1722145832378,-216.49027264,0.0001,2]
[333457765,1722145832388,-329.84,0.0001,2]
[333457766,1722145832397,-155.04016833,0.0001,2]
[333457767,1722145832407,-234.11,0.00010002,2]
[333457768,1722145832416,-692.6,0.00010049,2]
[333457769,1722145832426,-830.23,0.00010468,2]
[333457770,1722145832436,-38345.82909808,0.00010673,2]
[333457775,1722145837839,-312.16026517,8.219e-05,2]
[333457776,1722145837849,-187.83973483,0.00010673,2]
[333457777,1722145837963,-642.047345,0.00010673,2]
[333457778,1722145838077,-500.27909508,0.00010673,2]
[333457828,1722145839802,-487.38752446,0.00010673,2]
[333457829,1722145839814,-383.0020099,0.00010673,2]
[333457830,1722145839827,-890.90712876,0.00010673,2]
[333457831,1722145839915,-1955.70806389,0.00010673,2]
[333457832,1722145839925,-1111.01598888,0.0001078,2]
[333457833,1722145839935,-20283.4571,0.000108,2]
[333457834,1722145839945,-3458.73449507,0.000109,2]
[333457835,1722145840098,-4146.96510493,0.000109,2]
[333457836,1722145840108,-513.9902,0.000109,2]
[333457837,1722145840118,-18334.6477,0.000109,2]
[333457838,1722145840127,-6526.85,0.000109,2]
[333457839,1722145840136,-1693.1,0.000109,2]
[333457840,1722145840146,-174.17818266,0.000109,2]
[333457841,1722145840155,-500.0,0.00010911,2]
[333457842,1722145840164,-500.0,0.00010912,2]
[333457843,1722145840174,-200.0,0.00010959,2]
[333457844,1722145840183,-191.15,0.00010959,2]
[333457845,1722145840193,-14069.06199549,0.00010994,2]
[333457846,1722145840204,-905.54646048,0.00010994,2]
[333457847,1722145840215,-7920.65983353,0.00010994,2]
[333457848,1722145840225,-157.29253232,0.00010996,2]
[333457850,1722145840234,-18965.64763415,0.00010997,2]
[333457875,1722145842798,-13353.83733217,0.00010997,2]
[333457876,1722145842965,-20481.6,0.00010997,2]
[333457880,1722145845945,-3251.69928,0.00010997,2]
[333457881,1722145846058,-1095.38511365,0.00010997,2]
[333457882,1722145846092,-871.65317563,0.00010997,2]
[333457883,1722145846104,-3387.24046782,0.00010997,2]
[333457886,1722146368330,-799.54,8.219e-05,2]
[333457887,1722146390130,-300.0,9.287e-05,2]
[333457888,1722146390153,-1015.46,9.288e-05,2]
[333457889,1722146515570,49505.26506944,0.0002,90]
[333457890,1722146770955,20000.0,0.0002,90]
[333457937,1722147008283,-759.56,8.219e-05,2]
[333457938,1722147008308,-250.0,9.261e-05,2]
[333457939,1722147008330,-161.02,9.261e-05,2]
[333457940,1722147008352,-2000.0,9.263e-05,2]
[333457941,1722147008372,-22756.89,9.31e-05,2]
[333457942,1722147008393,-250.0,9.31e-05,2]
[333457943,1722147008414,-511.3400112,9.315e-05,2]
[333457944,1722147008436,-23890.0,9.325e-05,2]
[333457945,1722147008459,-245.92,9.334e-05,2]
[333457946,1722147008481,-150.0,9.999e-05,2]
[333457947,1722147008504,-8021.5963976,0.0001,2]
[333457948,1722147008525,-500.0,0.0001,2]
[333457949,1722147008546,-500.0,0.0001,2]
[333457950,1722147008756,-516.0,0.0001,2]
[333457951,1722147008779,-517.96,0.0001,2]
[333457952,1722147008800,-500.0,0.0001,2]
[333457976,1722147031926,-212.9706,0.00010008,2]
[333457978,1722147031936,-401.92,0.00010057,2]
[333457980,1722147031945,-401.92,0.0001006,2]
[333457982,1722147031954,-401.92,0.00010062,2]
[333457983,1722147031963,-1991.77347077,0.00010065,2]
[333457984,1722147031975,-1096.73776496,0.00010065,2]
[333457985,1722147031986,-1238.04,0.00010065,2]
[333457986,1722147031998,-318.00876427,0.00010065,2]
[333457987,1722147032008,-239.27206939,0.00010065,2]
[333457988,1722147032019,-162.64793061,0.00010065,2]
[333457989,1722147032028,-401.92,0.00010068,2]
[333457990,1722147032037,-401.92,0.0001007,2]
[333457991,1722147032047,-401.92,0.00010073,2]
[333457992,1722147032056,-401.92,0.00010076,2]
[333457993,1722147032065,-401.92,0.00010078,2]
[333457994,1722147032075,-401.92,0.00010081,2]
[333457995,1722147032084,-401.92,0.00010084,2]
[333457996,1722147032093,-401.92,0.00010086,2]
[333457997,1722147032102,-401.92,0.00010089,2]
[333457998,1722147032111,-401.92,0.00010092,2]
[333457999,1722147032121,-401.92,0.00010094,2]
[333458000,1722147032130,-401.92,0.00010097,2]
[333458001,1722147032139,-401.92,0.000101,2]
[333458002,1722147032148,-401.92,0.00010102,2]
[333458003,1722147032157,-401.92,0.00010105,2]
[333458004,1722147032166,-401.92,0.00010108,2]
[333458005,1722147032176,-759.56,0.00010437,2]
[333458006,1722147032186,-245.92,0.00010501,2]
[333458007,1722147032200,-1009.95483169,0.00010777,2]
[333458008,1722147032210,-880.21816599,0.00010899,2]
[333458009,1722147032219,-226.37107165,0.00010899,2]
[333458010,1722147032234,-653.84709428,0.00010899,2]
[333458011,1722147032243,-880.21816593,0.00010899,2]
[333458012,1722147032252,-880.21816593,0.00010899,2]
[333458013,1722147032262,-880.21816593,0.00010899,2]
[333458014,1722147032270,-880.21816593,0.00010899,2]
[333458015,1722147032280,-880.21816593,0.00010899,2]
[333458016,1722147032289,-746.5257155,0.00010899,2]
[333458017,1722147032300,-133.69245043,0.00010899,2]
[333458018,1722147032309,-344.9015129,0.000109,2]
[333458019,1722147032324,-535.31665303,0.000109,2]
[333458020,1722147032333,-1079.568,0.000109,2]
[333458021,1722147032342,-155.87015128,0.000109,2]
[333458022,1722147032351,-998.98344209,0.000109,2]
[333458023,1722147032360,-355.44956505,0.000109,2]
[333458024,1722147032369,-880.21816593,0.000109,2]
[333458025,1722147032378,-200.0,0.00010959,2]
[333458026,1722147032387,-2763.35162853,0.0001099,2]
[333458027,1722147032398,-535.511,0.0001099,2]
[333458028,1722147032409,-280.83854349,0.0001099,2]
[333458029,1722147032419,-8678.22559473,0.0001099,2]
[333458030,1722147032431,-4869.87206032,0.0001099,2]
[333458031,1722147032453,-140685.68137304,0.0001099,2]
[333458032,1722147032464,-1836.39289519,0.0001099,2]
[333458033,1722147032478,-1079.82897878,0.0001099,2]
[333458034,1722147032504,-500.0,0.0001099,2]
[333458035,1722147032514,-1524.10623217,0.0001099,2]
[333458036,1722147032525,-25604.96095305,0.0001099,2]
[333458037,1722147032536,-49990.68609813,0.00010997,2]
[333458038,1722147032546,-500.72613739,0.00010997,2]
[333458039,1722147032557,-3000.0,0.00010997,2]
[333458040,1722147032567,-190.50377157,0.00010998,2]
[333458041,1722147032576,-500.0,0.00010998,2]
[333458042,1722147032585,-398.91164127,0.00010998,2]
[333458043,1722147032594,-500.0,0.00010998,2]
[333458044,1722147032604,-500.0,0.00010998,2]
[333458045,1722147032614,-500.0,0.00010998,2]
[333458046,1722147032627,-276.95665704,0.00010998,2]
[333458047,1722147032636,-405.52820688,0.00010998,2]
[333458048,1722147032646,-500.0,0.00010998,2]
[333458049,1722147032656,-500.0,0.00010998,2]
[333458050,1722147032665,-500.0,0.00010998,2]
[333458051,1722147032675,-397.66119835,0.00010998,2]
[333458052,1722147032685,-368.57109975,0.00010998,2]
[333458053,1722147032695,-500.0,0.00010998,2]
[333458054,1722147032704,-500.0,0.00010998,2]
[333458055,1722147032713,-500.0,0.00010998,2]
[333458056,1722147032726,-500.0,0.00010998,2]
[333458057,1722147032735,-510.95125233,0.00010998,2]
[333458058,1722147032744,-500.0,0.00010998,2]
[333458059,1722147032753,-500.0,0.00010998,2]
[333458060,1722147032764,-500.0,0.00010998,2]
[333458061,1722147032773,-500.0,0.00010998,2]
[333458062,1722147032782,-500.0,0.00010998,2]
[333458063,1722147032791,-500.0,0.00010998,2]
[333458064,1722147032801,-500.0,0.00010998,2]
[333458065,1722147032810,-510.91774888,0.00010998,2]
[333458066,1722147032819,-500.0,0.00010998,2]
[333458067,1722147032829,-510.24543403,0.00010998,2]
[333458068,1722147032839,-548.29244133,0.00010998,2]
[333458069,1722147032848,-500.0,0.00010998,2]
[333458070,1722147032857,-508.34238869,0.00010998,2]
[333458071,1722147032866,-563.35409543,0.00010998,2]
[333458072,1722147032875,-524.16213249,0.00010998,2]
[333458073,1722147032884,-507.07434577,0.00010998,2]
[333458074,1722147032893,-512.20271129,0.00010998,2]
[333458075,1722147032903,-500.0,0.00010998,2]
[333458076,1722147032912,-513.12980533,0.00010998,2]
[333458077,1722147032921,-500.0,0.00010998,2]
[333458078,1722147032930,-503.8336621,0.00010998,2]
[333458079,1722147032939,-502.97268551,0.00010998,2]
[333458080,1722147032948,-500.0,0.00010998,2]
[333458081,1722147032957,-501.78564023,0.00010998,2]
[333458082,1722147032966,-501.39124728,0.00010998,2]
[333458083,1722147032976,-500.0,0.00010998,2]
[333458084,1722147032986,-501.37658618,0.00010998,2]
[333458085,1722147032995,-500.0,0.00010998,2]
[333458086,1722147033004,-809.28660577,0.00010999,2]
[333458087,1722147033014,-500.0,0.00010999,2]
[333458088,1722147033023,-249.75,0.00010999,2]
[333458089,1722147033033,-500.0,0.00010999,2]
[333458090,1722147033043,-211.86291854,0.00010999,2]
[333458091,1722147033053,-6058.65,0.00010999,2]
[333458092,1722147033062,-500.0,0.00010999,2]
[333458093,1722147033071,-504.46173659,0.00010999,2]
[333458094,1722147033080,-500.0,0.00010999,2]
[333458095,1722147033089,-500.0,0.00010999,2]
[333458096,1722147033099,-16206.899,0.00011,2]
[333458097,1722147033108,-1218.766,0.00011,2]
[333458098,1722147033117,-1669.0,0.00011,2]
[333458099,1722147033127,-5136.359,0.00011,2]
[333458100,1722147033136,-5829.0,0.00011,2]
[333458101,1722147033145,-8700.0,0.00011,2]
[333458102,1722147033154,-218095.28887023,0.00011,2]
[333458103,1722147033167,-479.84771151,0.00011,2]
[333458104,1722147033183,-746.56164777,0.00011,2]
[333458105,1722147033199,-984.09450233,0.00011,2]
[333458106,1722147035664,1049.45031214,0.0001,2]
[333458121,1722147037910,-803.26,0.00010367,2]
[333458122,1722147037921,-100606.51270943,0.00011,2]
[333458123,1722147038260,-147.95792861,0.00011,2]
[333458279,1722147040023,-333.81,0.00011,2]
[333458292,1722147040144,-46652.24691874,0.00011,2]
[333458294,1722147040156,-1358.27907488,0.00011,2]
[333458296,1722147040167,-335.505,0.00011,2]
[333458320,1722147040418,18819.93809339,0.0001,2]
[333458385,1722147043062,-1332.77391201,0.00011,2]
[333458407,1722147043271,-305.00692144,0.00011,2]
[333458457,1722147045972,-451.16284433,0.00011,2]
[333458458,1722147045984,-251.0342802,0.00011,2]
[333458459,1722147046107,-1232.34172291,0.00011,2]
[333458460,1722147046234,-3724.68309013,0.00011,2]
[333458461,1722147046243,-2004.90275782,0.00011,2]
[333458467,1722147049879,181.61391252,0.0001,2]
[333458468,1722147055544,160.15475012,0.0001,2]
[333458469,1722147062453,500.0,0.0001,2]
[333458470,1722147063215,500.0,0.0001,2]
[333458471,1722147063257,500.0,0.0001,2]
[333458472,1722147063954,500.0,0.0001,2]
[333458473,1722147064022,500.0,0.0001,2]
[333458474,1722147064517,300.41633906,0.0001,2]
[333458475,1722147064715,500.0,0.0001,2]
[333458476,1722147065124,500.0,0.0001,2]
[333458477,1722147065515,500.0,0.0001,2]
[333458478,1722147065876,500.0,0.0001,2]
[333458479,1722147066638,500.0,0.0001,2]
[333458480,1722147067394,500.0,0.0001,2]
[333458481,1722147068149,500.0,0.0001,2]
[333458482,1722147068916,500.0,0.0001,2]
[333458483,1722147069682,500.0,0.0001,2]
[333458484,1722147070331,160.15475012,0.0001,2]
[333458485,1722147070472,500.0,0.0001,2]
[333458486,1722147071277,500.0,0.0001,2]
[333458487,1722147072050,500.0,0.0001,2]
[333458488,1722147072792,500.0,0.0001,2]
[333458489,1722147073541,41.98543385,0.0001,2]
[333458490,1722147152398,-300.0,9.999e-05,2]
[333458491,1722147152420,-458.01456615,0.0001,2]
[333458492,1722147152441,-500.0,0.0001,2]
[333458493,1722147152462,-500.0,0.0001,2]
[333458494,1722147152483,-300.41633906,0.0001,2]
[333458495,1722147152504,-500.0,0.0001,2]
[333458496,1722147152524,-500.0,0.0001,2]
[333458497,1722147152544,-500.0,0.0001,2]
[333458498,1722147152566,-500.0,0.0001,2]
[333458499,1722147152591,-500.0,0.0001,2]
[333458500,1722147152613,-500.0,0.0001,2]
[333458501,1722147152633,-412.65604189,0.0001,2]
[333458502,1722147152654,-500.0,0.0001,2]
[333458503,1722147152674,-500.0,0.0001,2]
[333458504,1722147152694,-500.0,0.0001,2]
[333458505,1722147152890,-500.0,0.0001,2]
[333458506,1722147152912,-500.0,0.0001,2]
[333458507,1722147152934,-500.0,0.0001,2]
[333458508,1722147152954,-500.0,0.0001,2]
[333458509,1722147152974,-449.02476873,0.0001,2]
[333458510,1722147152996,-500.0,0.0001,2]
[333458511,1722147153018,-500.0,0.0001,2]
[333458512,1722147153040,-500.0,0.0001,2]
[333458513,1722147153061,-500.0,0.0001,2]
[333458514,1722147153083,-947.50118713,0.0001,2]
[333458515,1722147153104,-1049.45031214,0.0001,2]
[333458516,1722147153125,-500.0,0.0001,2]
[333458517,1722147153146,-63219.11136752,0.0001,2]
[333458518,1722147153167,-500.0,0.0001,2]
[333458519,1722147153189,-500.0,0.0001,2]
[333458520,1722147153210,-500.0,0.0001,2]
[333458521,1722147153233,-500.0,0.0001,2]
[333458522,1722147153255,-500.0,0.0001,2]
[333458523,1722147153277,-500.0,0.0001,2]
[333458524,1722147153298,-500.0,0.0001,2]
[333458525,1722147153321,-500.0,0.0001,2]
[333458526,1722147153342,-500.0,0.0001,2]
[333458527,1722147153363,-500.0,0.0001,2]
[333458528,1722147153384,-500.0,0.0001,2]
[333458529,1722147153407,-500.0,0.0001,2]
[333458530,1722147153428,-500.0,0.0001,2]
[333458531,1722147153449,-500.0,0.0001,2]
[333458532,1722147153470,-500.0,0.0001,2]
[333458533,1722147153491,-500.0,0.0001,2]
[333458534,1722147153512,-500.0,0.0001,2]
[333458535,1722147153533,-500.0,0.0001,2]
[333458536,1722147153723,500.0,0.0001,2]
[333458537,1722147153904,500.0,0.0001,2]
[333458538,1722147153970,500.0,0.0001,2]
[333458539,1722147154745,500.0,0.0001,2]
[333458540,1722147154816,500.0,0.0001,2]
[333458541,1722147155586,500.0,0.0001,2]
[333458542,1722147155861,500.0,0.0001,2]
[333458543,1722147156351,500.0,0.0001,2]
[333458544,1722147156608,500.0,0.0001,2]
[333458545,1722147156806,181.61391252,0.0001,2]
[333458546,1722147157116,500.0,0.0001,2]
[333458547,1722147157602,500.0,0.0001,2]
[333458548,1722147157867,500.0,0.0001,2]
[333458549,1722147158372,500.0,0.0001,2]
[333458550,1722147158834,500.0,0.0001,2]
[333458551,1722147159129,500.0,0.0001,2]
[333458552,1722147159399,500.0,0.0001,2]
[333458553,1722147159896,500.0,0.0001,2]
[333458554,1722147160160,500.0,0.0001,2]
[333458555,1722147160668,500.0,0.0001,2]
[333458556,1722147160928,500.0,0.0001,2]
[333458557,1722147161435,500.0,0.0001,2]
[333458558,1722147161689,500.0,0.0001,2]
[333458559,1722147162195,500.0,0.0001,2]
[333458560,1722147162456,500.0,0.0001,2]
[333458561,1722147162967,500.0,0.0001,2]
[333458562,1722147163225,500.0,0.0001,2]
[333458563,1722147163945,500.0,0.0001,2]
[333458564,1722147163989,500.0,0.0001,2]
[333458565,1722147164706,500.0,0.0001,2]
[333458566,1722147164748,500.0,0.0001,2]
[333458567,1722147165481,500.0,0.0001,2]
[333458568,1722147165510,500.0,0.0001,2]
[333458569,1722147166226,500.0,0.0001,2]
[333458570,1722147166262,500.0,0.0001,2]
[333458571,1722147167359,500.0,0.0001,2]
[333458572,1722147167391,500.0,0.0001,2]
[333458573,1722147168482,500.0,0.0001,2]
[333458574,1722147168518,500.0,0.0001,2]
[333458575,1722147169254,500.0,0.0001,2]
[333458692,1722148125056,1007.67,0.0002,90]
[333458748,1722148232191,-774.18,8.219e-05,2]
[333458749,1722148232202,-947.50118713,9.516e-05,2]
[333458750,1722148232212,-300.0,9.516e-05,2]
[333458751,1722148232221,-5865.87040995,9.517e-05,2]
[333458752,1722148232233,-5439.96,9.517e-05,2]
[333458753,1722148232244,-543.83019264,9.517e-05,2]
[333458754,1722148232255,-5132.15691497,9.517e-05,2]
[333458755,1722148232266,-1163.48703992,9.517e-05,2]
[333458756,1722148232279,-3094.2,9.517e-05,2]
[333458757,1722148232292,-939.2,9.517e-05,2]
[333458758,1722148232303,-1721.29544252,9.517e-05,2]
[333458759,1722148232313,-9317.61599045,9.545e-05,2]
[333458760,1722148232325,-13439.27400955,9.545e-05,2]
[333458761,1722148232334,-829.47,9.547e-05,2]
[333458762,1722148232343,-642.61,9.548e-05,2]
[333458763,1722148232353,-150.0,9.581e-05,2]
[333458764,1722148232362,-200.0,9.581e-05,2]
[333458765,1722148232371,-2000.0,9.582e-05,2]
[333458766,1722148232380,-427.35922764,9.603e-05,2]
[333458767,1722148232391,-361.47077236,9.603e-05,2]
[333458768,1722148232400,-336.02,9.606e-05,2]
[333458769,1722148232409,-250.0,9.624e-05,2]
[333458770,1722148232421,-357.39,9.751e-05,2]
[333458771,1722148232430,-279.08,9.9e-05,2]
[333458772,1722148232439,-499.99,9.95e-05,2]
[333458783,1722148232639,-512.5,9.959e-05,2]
[333458784,1722148232650,-511.3400112,9.977e-05,2]
[333458787,1722148232659,-279.08,9.99e-05,2]
[333458790,1722148232671,-279.08,9.99e-05,2]
[333458793,1722148232679,-279.08,9.99e-05,2]
[333458795,1722148232688,-279.08,9.99e-05,2]
[333458797,1722148232697,-279.08,9.99e-05,2]
[333458799,1722148232707,-129.82400029,0.0001,2]
[333458801,1722148232719,-370.17599971,0.0001,2]
[333458803,1722148232728,-500.0,0.0001,2]
[333458805,1722148232738,-500.0,0.0001,2]
[333458807,1722148232747,-500.0,0.0001,2]
[333458809,1722148232756,-86.19993383,0.0001,2]
[333458812,1722148232772,-413.80006617,0.0001,2]
[333458814,1722148232781,-457.05371394,0.0001,2]
[333458816,1722148232792,-42.94628606,0.0001,2]
[333458818,1722148232801,-500.0,0.0001,2]
[333458820,1722148232810,-500.0,0.0001,2]
[333458822,1722148232819,-500.0,0.0001,2]
[333458824,1722148232828,-500.0,0.0001,2]
[333458826,1722148232837,-500.0,0.0001,2]
[333458828,1722148232847,-500.0,0.0001,2]
[333458830,1722148232855,-500.0,0.0001,2]
[333458832,1722148232865,-500.0,0.0001,2]
[333458834,1722148232877,-564.19,0.0001,2]
[333458836,1722148232886,-500.0,0.0001,2]
[333458838,1722148232895,-500.0,0.0001,2]
[333458839,1722148232904,-80.05526041,0.0001,2]
[333458844,1722148232940,-419.94473959,0.0001,2]
[333458846,1722148232952,-160.15475012,0.0001,2]
[333458848,1722148232962,-500.0,0.0001,2]
[333458850,1722148232971,-500.0,0.0001,2]
[333458852,1722148232980,-500.0,0.0001,2]
[333458854,1722148232990,-500.0,0.0001,2]
[333458856,1722148232999,-500.0,0.0001,2]
[333458858,1722148233009,-399.19,0.0001,2]
[333458860,1722148233018,-181.61391252,0.0001,2]
[333458862,1722148233027,-772.19979807,0.0001,2]
[333458864,1722148233039,-365.35210606,0.0001,2]
[333458866,1722148233050,-4016.59568407,0.0001,2]
[333458869,1722148233062,-8378.7192649,0.0001,2]
[333458870,1722148233072,-2874.68249308,0.0001,2]
[333458873,1722148233091,-483.39404204,0.0001,2]
[333458876,1722148233103,-361.36554768,0.0001,2]
[333459020,1722148238250,-343.85707999,0.0001,2]
[333459022,1722148238262,-436.95432572,0.0001,2]
[333459035,1722148238374,-394.06476228,0.0001,2]
[333459037,1722148238385,-13925.6198426,0.0001,2]
[333459039,1722148238395,-412.65604189,0.0001,2]
[333459041,1722148238404,-300.41633906,0.0001,2]
[333459043,1722148238413,-500.0,0.0001,2]
[333459045,1722148238426,-1049.45031214,0.0001,2]
[333459047,1722148238435,-500.0,0.0001,2]
[333459049,1722148238445,-500.0,0.0001,2]
[333459051,1722148238454,-500.0,0.0001,2]
[333459053,1722148238463,-500.0,0.0001,2]
[333459055,1722148238472,-500.0,0.0001,2]
[333459057,1722148238482,-500.0,0.0001,2]
[333459059,1722148238491,-500.0,0.0001,2]
[333459061,1722148238499,-500.0,0.0001,2]
[333459063,1722148238508,-500.0,0.0001,2]
[333459064,1722148238517,-500.0,0.0001,2]
[333459066,1722148238526,-500.0,0.0001,2]
[333459068,1722148238535,-500.0,0.0001,2]
[333459070,1722148238544,-500.0,0.0001,2]
[333459072,1722148238553,-500.0,0.0001,2]
[333459074,1722148238562,-500.0,0.0001,2]
[333459076,1722148238571,-500.0,0.0001,2]
[333459078,1722148238580,-500.0,0.0001,2]
[333459079,1722148238589,-500.0,0.0001,2]
[333459080,1722148238598,-500.0,0.0001,2]
[333459081,1722148238607,-500.0,0.0001,2]
[333459082,1722148238616,-500.0,0.0001,2]
[333459084,1722148238625,-449.02476873,0.0001,2]
[333459085,1722148238634,-500.0,0.0001,2]
[333459086,1722148238643,-500.0,0.0001,2]
[333459087,1722148238652,-500.0,0.0001,2]
[333459088,1722148238662,-500.0,0.0001,2]
[333459089,1722148238671,-500.0,0.0001,2]
[333459090,1722148238681,-102.95269568,0.0001,2]
[333459091,1722148238693,-397.04730432,0.0001,2]
[333459092,1722148238703,-278.5008338,0.0001,2]
[333459093,1722148238714,-221.4991662,0.0001,2]
[333459094,1722148238723,-500.0,0.0001,2]
[333459095,1722148238732,-500.0,0.0001,2]
[333459096,1722148238741,-500.0,0.0001,2]
[333459097,1722148238750,-500.0,0.0001,2]
[333459098,1722148238760,-500.0,0.0001,2]
[333459099,1722148238769,-500.0,0.0001,2]
[333459100,1722148238778,-500.0,0.0001,2]
[333459101,1722148238788,-500.0,0.0001,2]
[333459102,1722148238797,-500.0,0.0001,2]
[333459103,1722148238806,-500.0,0.0001,2]
[333459104,1722148238815,-500.0,0.0001,2]
[333459105,1722148238823,-500.0,0.0001,2]
[333459106,1722148238832,-500.0,0.0001,2]
[333459107,1722148238841,-500.0,0.0001,2]
[333459108,1722148238850,-500.0,0.0001,2]
[333459109,1722148238859,-500.0,0.0001,2]
[333459110,1722148238870,-500.0,0.0001,2]
[333459111,1722148238882,-500.0,0.0001,2]
[333459112,1722148238891,-500.0,0.0001,2]
[333459113,1722148238900,-500.0,0.0001,2]
[333459114,1722148238910,-500.0,0.0001,2]
[333459115,1722148238920,-500.0,0.0001,2]
[333459116,1722148238929,-500.0,0.0001,2]
[333459117,1722148238938,-500.0,0.0001,2]
[333459118,1722148238948,-500.0,0.0001,2]
[333459119,1722148238958,-500.0,0.0001,2]
[333459120,1722148238967,-500.0,0.0001,2]
[333459121,1722148238977,-500.0,0.0001,2]
[333459122,1722148238986,-500.0,0.0001,2]
[333459123,1722148238995,-500.0,0.0001,2]
[333459124,1722148239004,-500.0,0.0001,2]
[333459125,1722148239013,-500.0,0.0001,2]
[333459126,1722148239022,-500.0,0.0001,2]
[333459127,1722148239031,-281.90383451,0.0001,2]
[333459128,1722148239044,-218.09616549,0.0001,2]
[333459129,1722148239053,-500.0,0.0001,2]
[333459130,1722148239062,-500.0,0.0001,2]
[333459131,1722148239071,-500.0,0.0001,2]
[333459132,1722148239080,-500.0,0.0001,2]
[333459133,1722148239090,-500.0,0.0001,2]
[333459134,1722148239099,-500.0,0.0001,2]
[333459135,1722148239109,-500.0,0.0001,2]
[333459136,1722148239118,-500.0,0.0001,2]
[333459137,1722148239127,-500.0,0.0001,2]
[333459138,1722148239137,-500.0,0.0001,2]
[333459139,1722148239147,-500.0,0.0001,2]
[333459140,1722148239156,-500.0,0.0001,2]
[333459141,1722148239166,-500.0,0.0001,2]
[333459142,1722148239177,-500.0,0.0001,2]
[333459143,1722148239187,-270.13310908,0.0001,2]
[333459144,1722148239202,-229.86689092,0.0001,2]
[333459145,1722148239211,-500.0,0.0001,2]
[333459146,1722148239221,-460.77611183,0.0001,2]
[333459147,1722148239233,-39.22388817,0.0001,2]
[333459148,1722148239242,-516.0,0.0001,2]
[333459149,1722148239252,-240.04431733,0.0001,2]
[333459150,1722148239263,-259.95568267,0.0001,2]
[333459151,1722148239273,-500.0,0.0001,2]
[333459152,1722148239282,-247.42729171,0.0001,2]
[333459153,1722148239293,-252.57270829,0.0001,2]
[333459154,1722148239303,-85.64729171,0.0001,2]
[333459155,1722148239315,-414.35270829,0.0001,2]
[333459156,1722148239325,-500.0,0.0001,2]
[333459157,1722148239334,-42.76993831,0.0001,2]
[333459158,1722148239345,-337.985,0.0001,2]
[333459159,1722148239362,-119.24506169,0.0001,2]